[Event "Titled Tuesday Blitz September 21 2021"]
[White "Djordjevic, Vuk"]
[Black "Visakh N R"]
[WhiteFideId "902098"]
[BlackFideId "25012223"]
[WhiteElo "2463"]
[BlackElo "2454"]
[Result "0-1"]
[Round "06"]
[TimeControl "180+1"]
[Date "2021.09.21"]
[WhiteClock "0:00:05"]
[BlackClock "0:01:02"]

1. d4 {[%clk 0:03:00]}  Nf6 {[%clk 0:02:57]} 2. Bg5 {[%clk 0:03:00]}  g6 {[%clk 0:02:50]} 3. Bxf6 {[%clk 0:02:59]}  exf6 {[%clk 0:02:51]} 4. c4 {[%clk 0:02:59]}  d5 {[%clk 0:02:51]} 5. Nc3 {[%clk 0:03:00]}  dxc4 {[%clk 0:02:49]} 6. e3 {[%clk 0:03:00]}  Bd6 {[%clk 0:02:46]} 7. Bxc4 {[%clk 0:03:00]}  O-O {[%clk 0:02:47]} 8. Nf3 {[%clk 0:02:58]}  c6 {[%clk 0:02:28]} 9. O-O {[%clk 0:02:58]}  f5 {[%clk 0:02:26]} 10. Rb1 {[%clk 0:02:55]}  Nd7 {[%clk 0:02:21]} 11. b4 {[%clk 0:02:52]}  a6 {[%clk 0:02:22]} 12. a4 {[%clk 0:02:51]}  b5 {[%clk 0:02:20]} 13. Bd3 {[%clk 0:02:46]}  Nf6 {[%clk 0:02:16]} 14. e4 {[%clk 0:02:39]}  fxe4 {[%clk 0:02:09]} 15. Nxe4 {[%clk 0:02:37]}  Nd5 {[%clk 0:02:10]} 16. Ne5 {[%clk 0:02:26]}  Nxb4 {[%clk 0:01:56]} 17. Rxb4 {[%clk 0:02:15]}  Bxb4 {[%clk 0:01:55]} 18. Nxc6 {[%clk 0:02:14]}  Qb6 {[%clk 0:01:54]} 19. Nxb4 {[%clk 0:02:13]}  Qxd4 {[%clk 0:01:51]} 20. Nc6 {[%clk 0:02:05]}  Qb6 {[%clk 0:01:49]} 21. Ne7+ {[%clk 0:01:46]}  Kg7 {[%clk 0:01:48]} 22. Qa1+ {[%clk 0:01:46]}  f6 {[%clk 0:01:49]} 23. Nd5 {[%clk 0:01:45]}  Qd8 {[%clk 0:01:32]} 24. Nexf6 {[%clk 0:00:40]}  Rxf6 {[%clk 0:01:30]} 25. Qxf6+ {[%clk 0:00:38]}  Qxf6 {[%clk 0:01:31]} 26. Nxf6 {[%clk 0:00:38]}  Kxf6 {[%clk 0:01:30]} 27. axb5 {[%clk 0:00:38]}  a5 {[%clk 0:01:27]} 28. Ra1 {[%clk 0:00:37]}  Bb7 {[%clk 0:01:26]} 29. f3 {[%clk 0:00:33]}  Ke5 {[%clk 0:01:26]} 30. Kf2 {[%clk 0:00:32]}  Kd4 {[%clk 0:01:26]} 31. Ke2 {[%clk 0:00:31]}  a4 {[%clk 0:01:24]} 32. Kd2 {[%clk 0:00:24]}  a3 {[%clk 0:01:24]} 33. h4 {[%clk 0:00:21]}  a2 {[%clk 0:01:21]} 34. h5 {[%clk 0:00:20]}  gxh5 {[%clk 0:01:17]} 35. Bxh7 {[%clk 0:00:20]}  h4 {[%clk 0:01:17]} 36. Kc2 {[%clk 0:00:09]}  Bd5 {[%clk 0:01:16]} 37. Be4 {[%clk 0:00:07]}  Bxe4+ {[%clk 0:01:03]} 38. fxe4 {[%clk 0:00:08]}  Rg8 {[%clk 0:01:03]} 39. Rxa2 {[%clk 0:00:03]}  Rxg2+ {[%clk 0:01:03]} 40. Kb3 {[%clk 0:00:04]}  Rxa2 {[%clk 0:01:01]} 41. Kxa2 {[%clk 0:00:05]}  Kc5 {[%clk 0:01:02]} 42. e5 {[%clk 0:00:05]}  Kxb5 {[%clk 0:01:02]} 0-1


[Site "https://www.chess.com"]

[Event "Titled Tuesday Blitz September 21 2021"]
[White "Dmitrenko, Viktor"]
[Black "Molina, Roberto Junio Brito"]
[WhiteFideId "14110270"]
[BlackFideId "2109450"]
[WhiteElo "2294"]
[BlackElo "2402"]
[Result "0-1"]
[Round "06"]
[TimeControl "180+1"]
[Date "2021.09.21"]
[WhiteClock "0:00:06"]
[BlackClock "0:00:09"]

1. d4 {[%clk 0:03:00]}  d5 {[%clk 0:03:00]} 2. Nf3 {[%clk 0:03:00]}  Nf6 {[%clk 0:02:59]} 3. c4 {[%clk 0:02:58]}  c6 {[%clk 0:02:59]} 4. Qc2 {[%clk 0:02:48]}  g6 {[%clk 0:02:59]} 5. Bf4 {[%clk 0:02:44]}  Bg7 {[%clk 0:02:58]} 6. e3 {[%clk 0:02:39]}  Bf5 {[%clk 0:02:57]} 7. Qb3 {[%clk 0:02:32]}  Qb6 {[%clk 0:02:56]} 8. Nc3 {[%clk 0:02:27]}  e6 {[%clk 0:02:49]} 9. c5 {[%clk 0:02:20]}  Qxb3 {[%clk 0:02:46]} 10. axb3 {[%clk 0:02:21]}  Nbd7 {[%clk 0:02:42]} 11. b4 {[%clk 0:02:17]}  O-O {[%clk 0:02:25]} 12. b5 {[%clk 0:02:14]}  cxb5 {[%clk 0:02:22]} 13. Bxb5 {[%clk 0:02:07]}  a6 {[%clk 0:02:18]} 14. Be2 {[%clk 0:02:03]}  Rfc8 {[%clk 0:02:14]} 15. h3 {[%clk 0:02:01]}  h6 {[%clk 0:02:04]} 16. O-O {[%clk 0:01:57]}  g5 {[%clk 0:02:04]} 17. Bh2 {[%clk 0:01:54]}  Ne4 {[%clk 0:01:36]} 18. Nxe4 {[%clk 0:01:48]}  Bxe4 {[%clk 0:01:36]} 19. Nd2 {[%clk 0:01:48]}  Bg6 {[%clk 0:01:32]} 20. b4 {[%clk 0:01:44]}  e5 {[%clk 0:01:21]} 21. dxe5 {[%clk 0:01:35]}  Nxe5 {[%clk 0:01:19]} 22. Nb3 {[%clk 0:01:16]}  Nc6 {[%clk 0:01:15]} 23. b5 {[%clk 0:01:05]}  axb5 {[%clk 0:01:06]} 24. Rxa8 {[%clk 0:01:04]}  Rxa8 {[%clk 0:01:06]} 25. Bxb5 {[%clk 0:01:04]}  Ra3 {[%clk 0:01:00]} 26. Bxc6 {[%clk 0:00:49]}  bxc6 {[%clk 0:00:58]} 27. Nd4 {[%clk 0:00:50]}  Ra6 {[%clk 0:00:52]} 28. Rd1 {[%clk 0:00:46]}  Kf8 {[%clk 0:00:39]} 29. Bd6+ {[%clk 0:00:45]}  Ke8 {[%clk 0:00:39]} 30. g4 {[%clk 0:00:42]}  Kd7 {[%clk 0:00:38]} 31. Kg2 {[%clk 0:00:38]}  Be4+ {[%clk 0:00:34]} 32. Kg3 {[%clk 0:00:35]}  Ra3 {[%clk 0:00:24]} 33. Rd2 {[%clk 0:00:31]}  Bf6 {[%clk 0:00:20]} 34. Nf3 {[%clk 0:00:23]}  Bxf3 {[%clk 0:00:18]} 35. Kxf3 {[%clk 0:00:24]}  Be7 {[%clk 0:00:14]} 36. Bxe7 {[%clk 0:00:22]}  Kxe7 {[%clk 0:00:15]} 37. Rb2 {[%clk 0:00:22]}  Rc3 {[%clk 0:00:15]} 38. Rb7+ {[%clk 0:00:21]}  Kf6 {[%clk 0:00:15]} 39. Ke2 {[%clk 0:00:15]}  Rc2+ {[%clk 0:00:14]} 40. Kd3 {[%clk 0:00:14]}  Rxc5 {[%clk 0:00:14]} 41. f4 {[%clk 0:00:14]}  gxf4 {[%clk 0:00:13]} 42. exf4 {[%clk 0:00:15]}  Rc4 {[%clk 0:00:11]} 43. Ke3 {[%clk 0:00:15]}  Re4+ {[%clk 0:00:08]} 44. Kf3 {[%clk 0:00:15]}  Re7 {[%clk 0:00:08]} 45. Rb6 {[%clk 0:00:13]}  Rc7 {[%clk 0:00:08]} 46. h4 {[%clk 0:00:12]}  Ke6 {[%clk 0:00:08]} 47. f5+ {[%clk 0:00:09]}  Ke5 {[%clk 0:00:06]} 48. Rb1 {[%clk 0:00:10]}  c5 {[%clk 0:00:06]} 49. Re1+ {[%clk 0:00:10]}  Kd6 {[%clk 0:00:07]} 50. Kf4 {[%clk 0:00:10]}  c4 {[%clk 0:00:05]} 51. g5 {[%clk 0:00:11]}  hxg5+ {[%clk 0:00:06]} 52. Kxg5 {[%clk 0:00:12]}  c3 {[%clk 0:00:06]} 53. h5 {[%clk 0:00:12]}  d4 {[%clk 0:00:07]} 54. h6 {[%clk 0:00:11]}  d3 {[%clk 0:00:07]} 55. h7 {[%clk 0:00:10]}  f6+ {[%clk 0:00:08]} 56. Kg6 {[%clk 0:00:09]}  Rxh7 {[%clk 0:00:08]} 57. Kxh7 {[%clk 0:00:09]}  d2 {[%clk 0:00:09]} 58. Rd1 {[%clk 0:00:10]}  Ke5 {[%clk 0:00:09]} 59. Kg6 {[%clk 0:00:08]}  c2 {[%clk 0:00:10]} 60. Rxd2 {[%clk 0:00:09]}  c1=Q {[%clk 0:00:10]} 61. Re2+ {[%clk 0:00:09]}  Kf4 {[%clk 0:00:10]} 62. Re6 {[%clk 0:00:08]}  Qg1+ {[%clk 0:00:09]} 63. Kxf6 {[%clk 0:00:09]}  Qg5+ {[%clk 0:00:10]} 64. Kf7 {[%clk 0:00:09]}  Kxf5 {[%clk 0:00:09]} 65. Ra6 {[%clk 0:00:06]}  Qh5+ {[%clk 0:00:09]} 66. Kg7 {[%clk 0:00:06]}  Qg4+ {[%clk 0:00:09]} 67. Kf7 {[%clk 0:00:05]}  Qc4+ {[%clk 0:00:09]} 68. Kg7 {[%clk 0:00:06]}  Qxa6 {[%clk 0:00:09]} 0-1


[Site "https://www.chess.com"]

[Event "Titled Tuesday Blitz September 21 2021"]
[White "Espinosa Veloz, Ermes"]
[Black "Okike, David"]
[WhiteFideId "3507424"]
[BlackFideId "8500134"]
[WhiteElo "2333"]
[BlackElo "2232"]
[Result "1-0"]
[Round "06"]
[TimeControl "180+1"]
[Date "2021.09.21"]
[WhiteClock "0:00:28"]
[BlackClock "0:00:56"]

1. e4 {[%clk 0:03:00]}  c5 {[%clk 0:02:59]} 2. Nf3 {[%clk 0:03:00]}  Nc6 {[%clk 0:02:59]} 3. Bb5 {[%clk 0:02:59]}  g6 {[%clk 0:02:56]} 4. O-O {[%clk 0:02:59]}  Bg7 {[%clk 0:02:56]} 5. Re1 {[%clk 0:02:59]}  Nh6 {[%clk 0:02:56]} 6. c3 {[%clk 0:02:57]}  O-O {[%clk 0:02:56]} 7. d4 {[%clk 0:02:56]}  cxd4 {[%clk 0:02:56]} 8. cxd4 {[%clk 0:02:57]}  f5 {[%clk 0:02:55]} 9. e5 {[%clk 0:02:50]}  Nf7 {[%clk 0:02:54]} 10. Bf4 {[%clk 0:02:41]}  e6 {[%clk 0:02:54]} 11. Nc3 {[%clk 0:02:40]}  g5 {[%clk 0:02:53]} 12. Bc1 {[%clk 0:02:33]}  g4 {[%clk 0:02:53]} 13. Nd2 {[%clk 0:02:13]}  Nxd4 {[%clk 0:02:53]} 14. Nc4 {[%clk 0:02:13]}  Nxb5 {[%clk 0:02:44]} 15. Nxb5 {[%clk 0:02:14]}  a6 {[%clk 0:02:41]} 16. Nbd6 {[%clk 0:02:11]}  b5 {[%clk 0:02:35]} 17. Nxf7 {[%clk 0:02:09]}  Rxf7 {[%clk 0:02:33]} 18. Nd6 {[%clk 0:02:10]}  Rf8 {[%clk 0:02:33]} 19. Bf4 {[%clk 0:02:05]}  Qb6 {[%clk 0:02:29]} 20. Rc1 {[%clk 0:02:00]}  Bb7 {[%clk 0:02:28]} 21. Be3 {[%clk 0:01:59]}  Qa5 {[%clk 0:01:59]} 22. Nxb7 {[%clk 0:01:59]}  Qxa2 {[%clk 0:01:59]} 23. Qxd7 {[%clk 0:01:58]}  Bxe5 {[%clk 0:01:59]} 24. Nc5 {[%clk 0:01:50]}  Rf7 {[%clk 0:01:58]} 25. Qxe6 {[%clk 0:01:48]}  Qxe6 {[%clk 0:01:57]} 26. Nxe6 {[%clk 0:01:49]}  Bxb2 {[%clk 0:01:57]} 27. Rc2 {[%clk 0:01:41]}  Be5 {[%clk 0:01:53]} 28. Rec1 {[%clk 0:01:32]}  Re7 {[%clk 0:01:48]} 29. Nf4 {[%clk 0:01:28]}  b4 {[%clk 0:01:41]} 30. Rc8+ {[%clk 0:01:27]}  Rxc8 {[%clk 0:01:39]} 31. Rxc8+ {[%clk 0:01:28]}  Kf7 {[%clk 0:01:39]} 32. Nd3 {[%clk 0:01:18]}  Bc3 {[%clk 0:01:37]} 33. Rb8 {[%clk 0:01:16]}  a5 {[%clk 0:01:35]} 34. Rb5 {[%clk 0:01:15]}  Kg6 {[%clk 0:01:34]} 35. Nf4+ {[%clk 0:01:12]}  Kf7 {[%clk 0:01:33]} 36. Rxf5+ {[%clk 0:01:11]}  Ke8 {[%clk 0:01:32]} 37. Nd5 {[%clk 0:01:01]}  Rd7 {[%clk 0:01:32]} 38. Kf1 {[%clk 0:00:55]}  a4 {[%clk 0:01:30]} 39. Nxc3 {[%clk 0:00:44]}  bxc3 {[%clk 0:01:30]} 40. Ra5 {[%clk 0:00:44]}  c2 {[%clk 0:01:24]} 41. Rxa4 {[%clk 0:00:43]}  Rd1+ {[%clk 0:01:23]} 42. Ke2 {[%clk 0:00:43]}  c1=Q {[%clk 0:01:24]} 43. Bxc1 {[%clk 0:00:43]}  Rxc1 {[%clk 0:01:25]} 44. Rxg4 {[%clk 0:00:43]}  Kf7 {[%clk 0:01:25]} 45. Rd4 {[%clk 0:00:38]}  Ra1 {[%clk 0:01:22]} 46. f4 {[%clk 0:00:37]}  Ra3 {[%clk 0:01:21]} 47. Rd3 {[%clk 0:00:36]}  Ra1 {[%clk 0:01:18]} 48. Kf3 {[%clk 0:00:35]}  Rf1+ {[%clk 0:01:18]} 49. Kg4 {[%clk 0:00:35]}  Rf2 {[%clk 0:01:19]} 50. Kg3 {[%clk 0:00:34]}  Rf1 {[%clk 0:01:19]} 51. h3 {[%clk 0:00:31]}  Kg7 {[%clk 0:01:17]} 52. Kg4 {[%clk 0:00:31]}  Rg1 {[%clk 0:01:13]} 53. g3 {[%clk 0:00:30]}  Kg6 {[%clk 0:01:12]} 54. Rd6+ {[%clk 0:00:30]}  Kg7 {[%clk 0:01:12]} 55. f5 {[%clk 0:00:30]}  Ra1 {[%clk 0:01:11]} 56. Kf4 {[%clk 0:00:29]}  Ra4+ {[%clk 0:01:09]} 57. Kg5 {[%clk 0:00:29]}  Ra7 {[%clk 0:01:08]} 58. g4 {[%clk 0:00:28]}  Rb7 {[%clk 0:01:01]} 59. Re6 {[%clk 0:00:28]}  Ra7 {[%clk 0:00:56]} 60. Re7+ {[%clk 0:00:27]}  Rxe7 {[%clk 0:00:54]} 61. f6+ {[%clk 0:00:27]}  Kf7 {[%clk 0:00:54]} 62. fxe7 {[%clk 0:00:28]}  Kxe7 {[%clk 0:00:55]} 63. Kh6 {[%clk 0:00:28]}  Kf6 {[%clk 0:00:56]} 64. Kxh7 {[%clk 0:00:28]}  Kg5 {[%clk 0:00:56]} 65. Kg7 {[%clk 0:00:28]} 1-0


[Site "https://www.chess.com"]

[Event "Titled Tuesday Blitz September 21 2021"]
[White "Eynullayev, Atilla"]
[Black "Ozen, Bahadir"]
[WhiteFideId "13413570"]
[BlackFideId "6337058"]
[WhiteElo "1997"]
[BlackElo "2503"]
[Result "0-1"]
[Round "06"]
[TimeControl "180+1"]
[Date "2021.09.21"]
[WhiteClock "0:00:04"]
[BlackClock "0:00:07"]

1. d4 {[%clk 0:03:00]}  Nf6 {[%clk 0:02:59]} 2. c4 {[%clk 0:03:00]}  e6 {[%clk 0:02:59]} 3. Nc3 {[%clk 0:03:01]}  Bb4 {[%clk 0:02:59]} 4. e3 {[%clk 0:03:01]}  O-O {[%clk 0:02:57]} 5. Nf3 {[%clk 0:03:01]}  d5 {[%clk 0:02:51]} 6. Bd2 {[%clk 0:03:02]}  c5 {[%clk 0:02:36]} 7. a3 {[%clk 0:02:54]}  Bxc3 {[%clk 0:02:36]} 8. Bxc3 {[%clk 0:02:54]}  Ne4 {[%clk 0:02:37]} 9. Rc1 {[%clk 0:02:55]}  Nxc3 {[%clk 0:02:33]} 10. Rxc3 {[%clk 0:02:55]}  cxd4 {[%clk 0:02:17]} 11. Nxd4 {[%clk 0:02:53]}  dxc4 {[%clk 0:02:15]} 12. Bxc4 {[%clk 0:02:51]}  Bd7 {[%clk 0:02:15]} 13. O-O {[%clk 0:02:36]}  Nc6 {[%clk 0:02:15]} 14. Rd3 {[%clk 0:01:55]}  Qf6 {[%clk 0:01:52]} 15. Nf3 {[%clk 0:01:12]}  Be8 {[%clk 0:01:44]} 16. b4 {[%clk 0:01:12]}  Rc8 {[%clk 0:01:30]} 17. Qb3 {[%clk 0:01:09]}  Ne5 {[%clk 0:01:26]} 18. Nxe5 {[%clk 0:01:09]}  Qxe5 {[%clk 0:01:27]} 19. f4 {[%clk 0:01:08]}  Qf5 {[%clk 0:01:18]} 20. Rd4 {[%clk 0:00:59]}  Bc6 {[%clk 0:01:17]} 21. Bd3 {[%clk 0:00:55]}  Qg4 {[%clk 0:01:16]} 22. e4 {[%clk 0:00:51]}  Rfd8 {[%clk 0:01:13]} 23. Rxd8+ {[%clk 0:00:49]}  Rxd8 {[%clk 0:01:13]} 24. b5 {[%clk 0:00:49]}  Be8 {[%clk 0:01:07]} 25. Rf3 {[%clk 0:00:30]}  Qh4 {[%clk 0:01:01]} 26. Qc3 {[%clk 0:00:21]}  Qf6 {[%clk 0:00:53]} 27. e5 {[%clk 0:00:20]}  Qe7 {[%clk 0:00:48]} 28. a4 {[%clk 0:00:12]}  h6 {[%clk 0:00:46]} 29. Qc2 {[%clk 0:00:11]}  Rd4 {[%clk 0:00:41]} 30. h3 {[%clk 0:00:10]}  Qd8 {[%clk 0:00:40]} 31. Kh2 {[%clk 0:00:09]}  Qh4 {[%clk 0:00:36]} 32. Be4 {[%clk 0:00:09]}  Qe1 {[%clk 0:00:31]} 33. Bxb7 {[%clk 0:00:09]}  Rd1 {[%clk 0:00:27]} 34. Qc8 {[%clk 0:00:09]}  Qg1+ {[%clk 0:00:25]} 35. Kg3 {[%clk 0:00:09]}  Qe1+ {[%clk 0:00:26]} 36. Kg4 {[%clk 0:00:07]}  h5+ {[%clk 0:00:19]} 37. Kxh5 {[%clk 0:00:06]}  g6+ {[%clk 0:00:08]} 38. Kh6 {[%clk 0:00:04]}  Qh4# {[%clk 0:00:07]} 0-1


[Site "https://www.chess.com"]

[Event "Titled Tuesday Blitz September 21 2021"]
[White "FGHSMN"]
[Black "Martinez Alcantara, Jose Eduardo"]
[BlackFideId "3805662"]
[WhiteElo "2733"]
[BlackElo "2690"]
[Result "1-0"]
[Round "06"]
[TimeControl "180+1"]
[Date "2021.09.21"]
[WhiteClock "0:00:16"]
[BlackClock "0:00:02"]

1. b3 {[%clk 0:03:00]}  c5 {[%clk 0:02:56]} 2. Bb2 {[%clk 0:03:00]}  Nc6 {[%clk 0:02:56]} 3. Nf3 {[%clk 0:02:57]}  Nf6 {[%clk 0:02:54]} 4. c4 {[%clk 0:02:55]}  g6 {[%clk 0:02:51]} 5. Bxf6 {[%clk 0:02:52]}  exf6 {[%clk 0:02:51]} 6. Nc3 {[%clk 0:02:52]}  f5 {[%clk 0:02:51]} 7. g3 {[%clk 0:02:51]}  Bg7 {[%clk 0:02:51]} 8. Bg2 {[%clk 0:02:51]}  O-O {[%clk 0:02:51]} 9. O-O {[%clk 0:02:51]}  d6 {[%clk 0:02:50]} 10. e3 {[%clk 0:02:50]}  Qa5 {[%clk 0:02:41]} 11. Qc1 {[%clk 0:02:08]}  Bd7 {[%clk 0:02:34]} 12. Rd1 {[%clk 0:02:06]}  a6 {[%clk 0:02:27]} 13. d4 {[%clk 0:02:01]}  cxd4 {[%clk 0:02:27]} 14. Nxd4 {[%clk 0:01:54]}  Nxd4 {[%clk 0:02:26]} 15. exd4 {[%clk 0:01:55]}  Bc6 {[%clk 0:02:26]} 16. Nd5 {[%clk 0:01:35]}  Rae8 {[%clk 0:02:26]} 17. Qd2 {[%clk 0:01:31]}  Qd8 {[%clk 0:02:21]} 18. Re1 {[%clk 0:01:27]}  Re6 {[%clk 0:02:18]} 19. Nf4 {[%clk 0:01:25]}  Ree8 {[%clk 0:02:08]} 20. Rad1 {[%clk 0:01:19]}  Bh6 {[%clk 0:01:56]} 21. h4 {[%clk 0:01:15]}  Be4 {[%clk 0:01:44]} 22. d5 {[%clk 0:00:55]}  Bxg2 {[%clk 0:01:23]} 23. Kxg2 {[%clk 0:00:56]}  Re4 {[%clk 0:01:20]} 24. Rxe4 {[%clk 0:00:53]}  fxe4 {[%clk 0:01:21]} 25. Qe3 {[%clk 0:00:52]}  Re8 {[%clk 0:01:21]} 26. b4 {[%clk 0:00:32]}  Re5 {[%clk 0:01:11]} 27. c5 {[%clk 0:00:21]}  dxc5 {[%clk 0:01:02]} 28. bxc5 {[%clk 0:00:22]}  Bxf4 {[%clk 0:01:02]} 29. Qxf4 {[%clk 0:00:23]}  Rxd5 {[%clk 0:01:01]} 30. Rb1 {[%clk 0:00:23]}  Rxc5 {[%clk 0:00:24]} 31. Rxb7 {[%clk 0:00:23]}  Qd5 {[%clk 0:00:14]} 32. Rb8+ {[%clk 0:00:23]}  Kg7 {[%clk 0:00:14]} 33. Qe3 {[%clk 0:00:24]}  Rc6 {[%clk 0:00:12]} 34. Re8 {[%clk 0:00:23]}  Re6 {[%clk 0:00:08]} 35. Qc3+ {[%clk 0:00:21]}  Kh6 {[%clk 0:00:08]} 36. Qe3+ {[%clk 0:00:20]}  Kg7 {[%clk 0:00:07]} 37. Qc3+ {[%clk 0:00:20]}  f6 {[%clk 0:00:04]} 38. Qc7+ {[%clk 0:00:19]}  Kh6 {[%clk 0:00:05]} 39. Qf4+ {[%clk 0:00:19]}  Kg7 {[%clk 0:00:05]} 40. Qc7+ {[%clk 0:00:18]}  Kh6 {[%clk 0:00:05]} 41. Rh8 {[%clk 0:00:17]}  e3+ {[%clk 0:00:04]} 42. Kh2 {[%clk 0:00:18]}  Kh5 {[%clk 0:00:02]} 43. Rxh7+ {[%clk 0:00:16]}  Kg4 {[%clk 0:00:02]} 44. Qf4# {[%clk 0:00:16]} 1-0


[Site "https://www.chess.com"]

[Event "Titled Tuesday Blitz September 21 2021"]
[White "Federzoni, Enzo"]
[Black "Korchmar, Vasiliy"]
[WhiteFideId "2173301"]
[BlackFideId "24131750"]
[WhiteElo "1956"]
[BlackElo "2370"]
[Result "1-0"]
[Round "06"]
[TimeControl "180+1"]
[Date "2021.09.21"]
[WhiteClock "0:00:46"]
[BlackClock "0:00:54"]

1. c4 {[%clk 0:03:00]}  Nf6 {[%clk 0:02:57]} 2. Nc3 {[%clk 0:03:00]}  g6 {[%clk 0:02:57]} 3. e4 {[%clk 0:02:59]}  Bg7 {[%clk 0:02:56]} 4. g3 {[%clk 0:02:58]}  O-O {[%clk 0:02:55]} 5. Bg2 {[%clk 0:02:58]}  e5 {[%clk 0:02:56]} 6. d3 {[%clk 0:02:58]}  Nc6 {[%clk 0:02:56]} 7. Nge2 {[%clk 0:02:59]}  d6 {[%clk 0:02:57]} 8. O-O {[%clk 0:02:59]}  Bg4 {[%clk 0:02:58]} 9. h3 {[%clk 0:02:58]}  Bd7 {[%clk 0:02:58]} 10. Be3 {[%clk 0:02:58]}  Nh5 {[%clk 0:02:58]} 11. Kh2 {[%clk 0:02:56]}  f5 {[%clk 0:02:56]} 12. f4 {[%clk 0:02:55]}  exf4 {[%clk 0:02:55]} 13. Nxf4 {[%clk 0:02:53]}  Nxf4 {[%clk 0:02:54]} 14. Bxf4 {[%clk 0:02:51]}  fxe4 {[%clk 0:02:55]} 15. Bxe4 {[%clk 0:02:49]}  Nd4 {[%clk 0:02:51]} 16. Qd2 {[%clk 0:02:47]}  Bc6 {[%clk 0:02:49]} 17. Nd5 {[%clk 0:02:45]}  Qd7 {[%clk 0:02:40]} 18. Bh6 {[%clk 0:02:42]}  Nf5 {[%clk 0:02:32]} 19. Bxg7 {[%clk 0:02:34]}  Qxg7 {[%clk 0:02:33]} 20. Rae1 {[%clk 0:02:29]}  Rae8 {[%clk 0:02:31]} 21. Bxf5 {[%clk 0:02:25]}  Rxe1 {[%clk 0:02:25]} 22. Rxe1 {[%clk 0:02:22]}  Bxd5 {[%clk 0:02:21]} 23. cxd5 {[%clk 0:02:04]}  Rxf5 {[%clk 0:02:18]} 24. Re8+ {[%clk 0:01:49]}  Kf7 {[%clk 0:02:18]} 25. Rc8 {[%clk 0:01:44]}  Kf6 {[%clk 0:01:27]} 26. Qc3+ {[%clk 0:01:41]}  Re5 {[%clk 0:01:28]} 27. Rxc7 {[%clk 0:01:41]}  Qh6 {[%clk 0:01:26]} 28. Rd7 {[%clk 0:01:34]}  Qe3 {[%clk 0:01:22]} 29. Rxd6+ {[%clk 0:01:33]}  Kg5 {[%clk 0:01:19]} 30. h4+ {[%clk 0:00:54]}  Kh5 {[%clk 0:01:16]} 31. Qc2 {[%clk 0:00:54]}  Rf5 {[%clk 0:01:03]} 32. Rd7 {[%clk 0:00:47]}  Rf2+ {[%clk 0:01:02]} 33. Kh3 {[%clk 0:00:47]}  Rxc2 {[%clk 0:01:00]} 34. Rxh7+ {[%clk 0:00:46]}  Qh6 {[%clk 0:00:54]} 35. g4# {[%clk 0:00:46]} 1-0


[Site "https://www.chess.com"]

[Event "Titled Tuesday Blitz September 21 2021"]
[White "Ghimpu, Samuel-Timotei"]
[Black "Gubanov, Oleg"]
[WhiteFideId "1238175"]
[BlackFideId "14115115"]
[WhiteElo "2012"]
[BlackElo "2128"]
[Result "1-0"]
[Round "06"]
[TimeControl "180+1"]
[Date "2021.09.21"]
[WhiteClock "0:00:08"]
[BlackClock "0:00:14"]

1. b3 {[%clk 0:03:00]}  Nf6 {[%clk 0:02:57]} 2. Bb2 {[%clk 0:02:59]}  g6 {[%clk 0:02:58]} 3. e4 {[%clk 0:02:58]}  Bg7 {[%clk 0:02:57]} 4. e5 {[%clk 0:02:58]}  Nd5 {[%clk 0:02:57]} 5. Nf3 {[%clk 0:02:53]}  d6 {[%clk 0:02:57]} 6. Qe2 {[%clk 0:02:45]}  dxe5 {[%clk 0:02:52]} 7. Nxe5 {[%clk 0:02:42]}  O-O {[%clk 0:02:50]} 8. Nc3 {[%clk 0:02:41]}  Nxc3 {[%clk 0:02:01]} 9. Bxc3 {[%clk 0:02:42]}  Nd7 {[%clk 0:01:47]} 10. Nxd7 {[%clk 0:02:28]}  Bxd7 {[%clk 0:01:40]} 11. Bxg7 {[%clk 0:02:29]}  Kxg7 {[%clk 0:01:40]} 12. h4 {[%clk 0:02:30]}  h5 {[%clk 0:01:39]} 13. O-O-O {[%clk 0:02:29]}  a5 {[%clk 0:01:32]} 14. Kb2 {[%clk 0:02:16]}  a4 {[%clk 0:01:30]} 15. Qe5+ {[%clk 0:02:12]}  f6 {[%clk 0:01:25]} 16. Qg3 {[%clk 0:02:04]}  Bg4 {[%clk 0:00:50]} 17. Bd3 {[%clk 0:01:50]}  Qd6 {[%clk 0:00:36]} 18. Qxd6 {[%clk 0:01:45]}  cxd6 {[%clk 0:00:35]} 19. f3 {[%clk 0:01:41]}  Bd7 {[%clk 0:00:35]} 20. Rhg1 {[%clk 0:01:38]}  e5 {[%clk 0:00:32]} 21. Be4 {[%clk 0:01:35]}  Bc6 {[%clk 0:00:32]} 22. d4 {[%clk 0:01:35]}  d5 {[%clk 0:00:29]} 23. Bd3 {[%clk 0:01:24]}  e4 {[%clk 0:00:29]} 24. fxe4 {[%clk 0:01:19]}  dxe4 {[%clk 0:00:30]} 25. Be2 {[%clk 0:01:20]}  axb3 {[%clk 0:00:25]} 26. axb3 {[%clk 0:01:20]}  f5 {[%clk 0:00:25]} 27. g3 {[%clk 0:01:12]}  Kf6 {[%clk 0:00:19]} 28. c4 {[%clk 0:01:09]}  Rfd8 {[%clk 0:00:19]} 29. d5 {[%clk 0:01:03]}  Bd7 {[%clk 0:00:18]} 30. c5 {[%clk 0:01:03]}  Ke5 {[%clk 0:00:18]} 31. Bc4 {[%clk 0:00:48]}  Rdc8 {[%clk 0:00:17]} 32. b4 {[%clk 0:00:47]}  Ra4 {[%clk 0:00:17]} 33. Kb3 {[%clk 0:00:43]}  Rca8 {[%clk 0:00:17]} 34. Rb1 {[%clk 0:00:26]}  Ra2 {[%clk 0:00:15]} 35. Rb2 {[%clk 0:00:23]}  R8a3+ {[%clk 0:00:14]} 36. Kc2 {[%clk 0:00:24]}  Rxb2+ {[%clk 0:00:13]} 37. Kxb2 {[%clk 0:00:24]}  Rf3 {[%clk 0:00:11]} 38. b5 {[%clk 0:00:23]}  Kd4 {[%clk 0:00:11]} 39. c6 {[%clk 0:00:21]}  Bc8 {[%clk 0:00:11]} 40. Bb3 {[%clk 0:00:19]}  Kc5 {[%clk 0:00:11]} 41. cxb7 {[%clk 0:00:06]}  Bxb7 {[%clk 0:00:10]} 42. Rd1 {[%clk 0:00:07]}  Rd3 {[%clk 0:00:09]} 43. Rxd3 {[%clk 0:00:06]}  exd3 {[%clk 0:00:10]} 44. Kc3 {[%clk 0:00:07]}  Bxd5 {[%clk 0:00:10]} 45. Bxd5 {[%clk 0:00:04]}  Kxd5 {[%clk 0:00:10]} 46. Kxd3 {[%clk 0:00:05]}  Kc5 {[%clk 0:00:11]} 47. Ke3 {[%clk 0:00:05]}  Kxb5 {[%clk 0:00:11]} 48. Kf4 {[%clk 0:00:06]}  Kc5 {[%clk 0:00:12]} 49. Kg5 {[%clk 0:00:06]}  Kd5 {[%clk 0:00:12]} 50. Kxg6 {[%clk 0:00:07]}  Ke5 {[%clk 0:00:13]} 51. Kxh5 {[%clk 0:00:07]}  f4 {[%clk 0:00:13]} 52. gxf4+ {[%clk 0:00:08]}  Kxf4 {[%clk 0:00:14]} 53. Kg6 {[%clk 0:00:08]} 1-0


[Site "https://www.chess.com"]